bitfinex/quotes_ETHUSD_20251006
["timestamp","ask_amount","ask_price","bid_price","bid_amount"]
[1759792745328,0.002,4690.8,4690.7,5.33602304]
[1759792745489,0.002,4690.8,4690.7,33.77138704]
[1759792745689,0.002,4690.8,4690.7,33.70667604]
[1759792745894,0.002,4690.8,4690.7,32.82780504]
[1759792746093,0.002,4690.8,4690.7,33.84105504]
[1759792746697,0.002,4690.8,4690.7,32.36155104]
[1759792747012,0.002,4690.8,4690.7,25.15821204]
[1759792747209,0.002,4690.8,4690.7,22.55031204]
[1759792747404,0.002,4690.8,4690.7,21.08185004]
[1759792747717,0.002,4690.8,4690.7,12.67305004]
[1759792747915,0.002,4690.8,4690.7,11.80186304]
[1759792748120,0.002,4690.8,4690.7,12.56737004]
[1759792748321,0.002,4690.8,4690.7,12.15099304]
[1759792748916,0.002,4690.8,4690.7,4.9094]
[1759792749104,0.002,4690.8,4690.7,12.69980597]
[1759792750120,0.002,4690.8,4690.7,17.36688897]
[1759792751187,0.002,4690.8,4690.7,37.48477797]
[1759792751832,0.002,4690.8,4690.7,37.69822849]
[1759792752116,0.002,4690.8,4690.7,7.69822849]
[1759792752517,0.002,4690.8,4690.7,37.69822849]
[1759792756190,0.002,4690.8,4690.7,7.69822849]
[1759792756391,0.002,4690.8,4690.7,37.69822849]
[1759792756587,0.002,4691.9,4690.7,37.69822849]
[1759792756588,0.002,4691.9,4691.7,2.13142357]
[1759792756821,0.002,4691.9,4691.7,7.14756593]
[1759792757022,0.002,4691.9,4691.7,7.59106593]
[1759792757214,0.002,4691.9,4691.7,37.59106593]
[1759792757522,0.002,4691.9,4691.7,22.51213593]
[1759792758210,0.002,4691.9,4691.7,18.41816193]
[1759792758414,0.002,4691.9,4691.7,18.83505393]
[1759792759432,0.002,4691.9,4691.7,37.59106593]
[1759792761424,0.002,4691.9,4691.7,7.59106593]
[1759792761936,0.002,4691.9,4691.7,37.59106593]
[1759792762336,0.002,4691.9,4691.7,37.04808693]
[1759792762631,0.002,4691.9,4691.7,7.59106593]
[1759792763101,0.002,4691.9,4691.7,31.54138893]
[1759792763303,0.002,4691.9,4691.7,23.34571193]
[1759792763606,0.002,4691.9,4691.7,28.99726093]
[1759792763802,0.002,4691.9,4691.7,25.75546993]
[1759792764717,0.002,4691.9,4691.7,26.35934193]
[1759792764931,0.002,4691.9,4691.7,22.09191393]
[1759792765232,0.002,4691.9,4691.7,13.50315893]
[1759792765730,0.002,4691.9,4691.7,16.60662993]
[1759792766504,0.002,4691.9,4691.7,12.79213893]
[1759792766725,0.002,4691.9,4691.7,12.58986693]
[1759792767313,0.002,4691.9,4691.7,7.04082357]
[1759792767535,0.4537,4691.8,4691.7,11.82364157]
[1759792767725,0.002,4691.8,4691.7,21.60597957]
[1759792767932,0.002,4691.8,4691.7,21.56733857]
[1759792768225,0.002,4691.8,4691.7,22.22428909]
[1759792768430,0.002,4691.8,4691.7,22.01083857]
[1759792768806,0.002,4691.8,4691.7,7.48432357]
[1759792769136,0.002,4691.8,4691.7,37.48432357]
[1759792770441,0.002,4691.8,4691.7,37.04082357]
[1759792770808,0.002,4691.8,4691.7,7.04082357]
[1759792771223,0.002,4691.8,4691.7,37.04082357]
[1759792771538,0.002,4691.8,4691.7,19.57562157]
[1759792771839,0.002,4691.8,4691.7,27.95587157]
[1759792772043,0.002,4691.8,4691.7,29.56627757]
[1759792772209,0.002,4691.8,4691.7,28.34632957]
[1759792772939,0.002,4691.8,4691.7,37.48432357]
[1759792773143,0.002,4691.8,4691.7,37.04082357]
[1759792773441,0.002,4691.8,4691.7,37.69177409]
[1759792773629,1e-08,4691.9,4691.8,4.53137814]
[1759792773849,1e-08,4691.9,4691.8,34.96887814]
[1759792774960,1e-08,4691.9,4691.8,4.96887814]
[1759792775129,1e-08,4691.9,4691.8,35.05410919]
[1759792775940,1e-08,4691.9,4691.8,5.05410919]
[1759792776243,1e-08,4691.9,4691.8,35.05410919]
[1759792778040,1e-08,4691.9,4691.8,5.05410919]
[1759792778246,1e-08,4691.9,4691.8,35.05410919]
[1759792779130,1e-08,4691.9,4691.8,5.05410919]
[1759792781038,1e-08,4691.9,4691.8,36.58292986]
[1759792781561,1e-08,4691.9,4691.8,35.05410919]
[1759792788761,1e-08,4691.9,4691.8,34.61660919]
[1759792788960,1e-08,4691.9,4691.8,37.01860919]
[1759792789279,1e-08,4691.9,4691.8,36.93337814]
[1759792792487,1e-08,4691.9,4691.8,36.93437814]
[1759792793963,1e-08,4691.9,4691.8,37.50087814]
[1759792794383,1e-08,4691.9,4691.8,37.58610919]
[1759792794691,1e-08,4691.9,4691.8,37.12600919]
[1759792798299,1e-08,4691.9,4691.8,37.58610919]
[1759792799166,1e-08,4691.9,4691.8,39.49203006]
[1759792799355,1e-08,4691.9,4691.8,37.12600919]
[1759792800796,0.44200001,4691.9,4691.8,12.77848314]
[1759792800982,0.44200001,4691.9,4691.8,20.82776214]
[1759792801177,0.44200001,4691.9,4691.8,16.03415014]
[1759792801859,1e-08,4691.9,4691.8,37.04077814]
[1759792802875,1e-08,4691.9,4691.8,7.04077814]
[1759792803073,1e-08,4691.9,4691.8,37.04077814]
[1759792804069,1e-08,4691.9,4691.8,37.12601155]
[1759792804879,1e-08,4691.9,4691.8,7.12601155]
[1759792805097,1e-08,4691.9,4691.8,37.12601155]
[1759792806004,1e-08,4691.9,4691.8,34.72401155]
[1759792806216,1e-08,4691.9,4691.8,37.04077814]
[1759792810117,1e-08,4691.9,4691.8,37.48487814]
[1759792810321,1e-08,4691.9,4691.8,37.04077814]
[1759792814514,1e-08,4691.9,4691.8,37.12601155]
[1759792814836,0.46090001,4693.4,4692.5,2.1310602]
[1759792815046,0.46090001,4693.4,4692.5,36.9330602]
[1759792815336,1e-08,4693.4,4692.5,37.0394602]
[1759792815544,0.4729,4692.9,4692.5,37.1246829]
[1759792817334,0.4629,4692.6,4692.5,24.11401024]
[1759792817536,0.4629,4692.6,4692.5,7.8598789]
[1759792817750,0.4629,4692.6,4692.5,10.2618789]
[1759792817931,0.4629,4692.6,4692.5,7.2870512]
[1759792818237,0.4629,4692.6,4692.5,2.5084]
[1759792819141,0.4629,4692.6,4692.5,19.184354]
[1759792819304,0.4629,4692.6,4692.5,8.3118222]
[1759792819511,0.4629,4692.6,4692.5,4.6394602]
[1759792819905,0.4629,4692.6,4692.5,8.9752822]
[1759792820109,0.4629,4692.6,4692.5,8.2548402]
[1759792820407,0.4629,4692.6,4692.5,8.2498402]
[1759792820607,0.4629,4692.6,4692.5,8.7238402]
[1759792820808,0.4629,4692.6,4692.5,4.6394602]
[1759792821102,0.4629,4692.6,4692.5,10.7174642]
[1759792821305,0.4629,4692.6,4692.5,11.0674362]
[1759792822939,0.4629,4692.6,4692.5,17.0294962]
[1759792823105,0.4629,4692.6,4692.5,8.9619512]
[1759792823842,0.4629,4692.6,4692.5,4.6394602]
[1759792824343,0.4629,4692.6,4692.5,11.8466702]
[1759792824911,0.4629,4692.6,4692.5,7.4709012]
[1759792825612,0.4629,4692.6,4692.5,2.5084]
[1759792826038,0.4629,4692.6,4692.5,4.6394602]
[1759792826346,0.4629,4692.6,4692.5,8.5829112]
[1759792827025,0.4629,4692.6,4692.5,7.0010712]
[1759792827425,0.4629,4692.6,4692.5,4.6394602]
[1759792827748,0.4629,4692.6,4692.5,2.5084]
[1759792828444,0.4629,4692.6,4692.5,4.6394602]
[1759792828753,0.4629,4692.6,4692.5,7.7801262]
[1759792829724,0.4629,4692.6,4692.5,2.5084]
[1759792830627,0.64818,4692.6,4692.3,0.001]
[1759792831026,0.4609,4692.5,4692.3,0.001]
[1759792831949,0.4609,4692.4,4692.3,0.001]
[1759792834867,0.4609,4692.4,4692.3,2.13215103]
[1759792835235,0.4609,4692.4,4692.3,0.001]
[1759792836133,0.4609,4692.4,4692.3,2.13215103]
[1759792837869,0.002,4692.6,4692.4,2.13107744]
[1759792838065,0.002,4692.6,4692.5,2.402]
[1759792838567,0.4657,4692.6,4692.5,2.402]
[1759792840773,0.4657,4692.6,4692.5,2.5084]
[1759792841134,1.84359995,4692.6,4692.5,2.5084]
[1759792841367,1.37989995,4692.6,4692.5,4.6394602]
[1759792841539,1.84359995,4692.6,4692.5,2.5084]
[1759792841738,1.84359995,4692.6,4692.5,4.6394602]
[1759792842470,1.84359995,4692.6,4692.5,2.5084]
[1759792842887,1.84359995,4692.6,4692.5,4.6394602]
[1759792843173,1.84359995,4692.6,4692.5,2.5084]
[1759792845547,1.84359995,4692.6,4692.5,4.6394602]
[1759792845743,1.37989995,4692.6,4692.5,4.6394602]
[1759792845949,1.37989995,4692.6,4692.5,2.5084]
[1759792846651,1.37989995,4692.6,4692.5,4.6394602]
[1759792848079,0.002,4692.6,4692.5,13.5085092]
[1759792848250,0.002,4692.6,4692.5,21.5133462]
[1759792848450,0.002,4692.6,4692.5,10.1797642]
[1759792848671,0.002,4692.6,4692.5,7.4252282]
[1759792848994,0.002,4692.6,4692.5,14.5748382]
[1759792849573,0.002,4692.6,4692.5,12.6039982]
[1759792850102,0.002,4692.6,4692.5,13.8531982]
[1759792850302,0.002,4692.6,4692.5,12.1788942]
[1759792850997,0.002,4692.6,4692.5,14.7475382]
[1759792851168,0.002,4692.6,4692.5,15.1939382]
[1759792853410,0.002,4692.6,4692.5,15.0875382]
[1759792853571,0.002,4692.6,4692.5,17.5939382]
[1759792853974,0.002,4692.6,4692.5,39.0145001]
[1759792856206,0.002,4692.6,4692.5,37.4858602]
[1759792857809,0.002,4692.6,4692.5,38.9081001]
[1759792857984,0.002,4692.6,4692.5,8.9081001]
[1759792858191,0.002,4692.6,4692.5,38.9081001]
[1759792858812,0.002,4692.6,4692.5,37.3794602]
[1759792859013,0.002,4693.1,4693.0,2.13083315]
[1759792859182,0.002,4693.1,4693.0,34.53283315]
[1759792859382,0.002,4693.1,4693.0,37.37923315]
[1759792860788,0.002,4693.1,4693.0,23.61047715]
[1759792861410,0.002,4693.1,4693.0,27.50713315]
[1759792861629,0.002,4693.1,4693.0,27.13211715]
[1759792862416,0.002,4693.1,4693.0,31.97630215]
[1759792862617,0.002,4693.1,4693.0,29.57430215]
[1759792862912,0.002,4693.1,4693.0,31.97530215]
[1759792863095,0.002,4693.1,4693.0,10.51454915]
[1759792863293,0.002,4693.1,4693.0,12.91554915]
[1759792863496,0.002,4693.1,4693.0,15.40817915]
[1759792864532,0.002,4693.1,4693.0,23.62556015]
[1759792864719,0.002,4693.1,4693.0,24.43549215]
[1759792865114,0.002,4693.1,4693.0,18.26784815]
[1759792865328,0.002,4693.1,4693.0,9.36316715]
[1759792865525,0.449,4693.1,4693.0,10.29238115]
[1759792865940,0.449,4693.1,4693.0,9.68597715]
[1759792865941,0.002,4693.1,4693.0,9.68597715]
[1759792866538,0.002,4693.1,4693.0,13.23633415]
[1759792866829,0.002,4693.1,4693.0,11.54763015]
[1759792867125,0.002,4693.1,4693.0,6.93183315]
[1759792867327,0.449,4693.1,4693.0,6.93183315]
[1759792867702,0.449,4693.1,4693.0,7.03823315]
[1759792868429,0.449,4693.1,4693.0,11.18711015]
[1759792868633,0.002,4693.1,4693.0,11.18711015]
[1759792869401,0.002,4693.1,4693.0,20.38255515]
[1759792869604,0.002,4693.1,4693.0,18.99403615]
[1759792870631,0.002,4693.1,4693.0,20.40375815]
[1759792871030,0.002,4693.1,4693.0,19.51463615]
[1759792871427,0.002,4693.1,4693.0,25.90192315]
[1759792871813,0.002,4693.1,4693.0,24.73790215]
[1759792872330,0.002,4693.1,4693.0,24.33806215]
[1759792873234,0.002,4693.1,4693.0,24.81186215]
[1759792873443,0.002,4693.1,4693.0,31.70156415]
[1759792874554,0.002,4693.1,4693.0,33.43047015]
[1759792874711,0.002,4693.1,4693.0,33.01257015]
[1759792875450,0.002,4693.1,4693.0,7.51203315]
[1759792876008,0.002,4693.1,4693.0,31.98504715]
[1759792876231,0.002,4693.1,4693.0,31.98930615]
[1759792876432,0.002,4693.1,4693.0,7.51203315]
[1759792876946,0.002,4693.1,4693.0,32.58930615]
[1759792877131,0.002,4693.1,4693.0,32.39800615]
[1759792877333,0.002,4693.1,4693.0,30.99800615]
[1759792877633,0.002,4693.1,4693.0,30.99798515]
[1759792878614,0.002,4693.1,4693.0,37.51203315]
[1759792878927,0.002,4693.1,4693.0,39.2499617]
[1759792879144,0.002,4693.1,4693.0,37.72548367]
[1759792879773,0.002,4693.1,4693.0,37.51203315]
[1759792881270,0.002,4693.1,4693.0,15.45150415]
[1759792881470,0.002,4693.1,4693.0,17.85250415]
[1759792881635,0.002,4693.1,4693.0,35.91933215]
[1759792881835,0.002,4693.1,4693.0,33.08792415]
[1759792882157,0.002,4693.1,4693.0,35.48892415]
[1759792882356,0.002,4693.1,4693.0,35.57413995]
[1759792882555,0.449,4693.1,4693.0,6.84289996]
[1759792882871,0.449,4693.1,4693.0,0.1064]
[1759792883046,0.449,4693.1,4693.0,2.5074]
[1759792884271,0.449,4693.1,4693.0,0.1064]
[1759792884444,0.449,4693.1,4693.0,2.5074]
[1759792884649,0.70717186,4693.1,4693.0,2.5074]
[1759792885462,0.449,4693.1,4693.0,2.5074]
[1759792891787,0.449,4693.1,4693.0,2.5074]
[1759792892506,0.002,4693.1,4693.0,9.87340015]
[1759792892807,0.002,4693.1,4693.0,13.69321215]
[1759792893391,0.002,4693.1,4693.0,13.21941215]
[1759792893567,0.002,4693.1,4693.0,13.87841215]
[1759792893764,0.002,4693.1,4693.0,13.87941215]
[1759792893959,0.002,4693.1,4693.0,13.89670515]
[1759792894180,0.002,4693.1,4693.0,10.69137515]
[1759792894381,0.002,4693.1,4693.0,10.70197615]
[1759792894580,0.002,4693.1,4693.0,12.32527115]
[1759792894780,0.002,4693.1,4693.0,11.32527115]
[1759792895189,0.002,4693.1,4693.0,7.03823315]
[1759792895388,0.002,4693.1,4693.0,4.9074]
[1759792895604,0.002,4693.1,4693.0,7.03823315]
[1759792896408,0.002,4693.1,4693.0,14.12964015]
[1759792896612,0.002,4693.1,4693.0,14.22226715]
[1759792896808,0.002,4693.1,4693.0,14.67076715]
[1759792897306,0.002,4693.1,4693.0,21.53931515]
[1759792898022,0.002,4693.1,4693.0,16.97570115]
[1759792898203,0.002,4693.1,4693.0,16.49055815]
[1759792898505,0.002,4693.1,4693.0,18.24974615]
[1759792899516,0.002,4693.1,4693.0,20.03243515]
[1759792899894,0.002,4693.1,4693.0,10.69894615]
[1759792900583,0.002,4693.1,4693.0,9.98255715]
[1759792900789,0.002,4693.1,4693.0,10.43105715]
[1759792901005,0.002,4693.1,4693.0,9.98255715]
[1759792901207,0.002,4693.1,4693.0,10.43105715]
[1759792901618,0.002,4693.1,4693.0,7.48673315]
[1759792901916,0.002,4693.1,4693.0,37.48673315]
[1759792902316,0.002,4693.1,4693.0,37.5719524]
[1759792902680,0.002,4693.1,4693.0,39.09955356]
[1759792904518,0.002,4693.1,4693.0,38.99315356]
[1759792904816,0.002,4693.1,4693.0,37.5719524]
[1759792905517,1e-08,4693.4,4693.3,2.13069695]
[1759792905727,1e-08,4693.4,4693.3,36.93169695]
[1759792905925,1e-08,4693.4,4693.3,37.38019695]
[1759792906218,1e-08,4693.4,4693.3,37.48659695]
[1759792907617,1e-08,4693.4,4693.3,35.08559695]
[1759792907919,1e-08,4693.4,4693.3,34.72230059]
[1759792908094,1e-08,4693.4,4693.3,37.12330059]
[1759792908494,1e-08,4693.4,4693.3,37.57180059]
[1759792908989,0.45560001,4693.4,4693.3,7.17690159]
[1759792909189,0.45560001,4693.4,4693.3,9.58509695]
[1759792909808,0.45560001,4693.4,4693.3,7.03809695]
[1759792910004,0.45560001,4693.4,4693.3,6.79808995]
[1759792910206,0.45560001,4693.4,4693.3,9.19908995]
[1759792910718,0.45560001,4693.4,4693.3,4.9074]
[1759792911021,0.45560001,4693.4,4693.3,2.5074]
[1759792911319,0.45560001,4693.4,4693.3,0.1064]
[1759792911485,2.84546992,4693.4,4693.3,0.1064]
[1759792911690,0.71481837,4693.4,4693.0,2.401]
[1759792911891,2.13074235,4693.2,4693.1,0.1064]
[1759792912414,2.58634235,4693.2,4693.1,0.1064]
[1759792912618,3.08416394,4693.2,4693.1,0.1064]
[1759792914626,0.95342159,4693.2,4693.1,0.1064]
[1759792914933,0.4556,4693.2,4693.1,0.1064]
[1759792915295,2.58634235,4693.2,4693.1,0.1064]
[1759792916833,0.4556,4693.2,4693.1,0.1064]
[1759792919199,1e-08,4693.4,4693.1,0.1064]
[1759792919401,0.4556,4693.3,4693.1,0.1064]
[1759792919615,0.4556,4693.2,4693.1,0.1064]
[1759792920627,1e-08,4693.4,4693.3,2.13069695]
[1759792920830,1e-08,4693.4,4693.3,18.14124295]
[1759792921027,1e-08,4693.4,4693.3,23.77874195]
[1759792921327,1e-08,4693.4,4693.3,21.40193695]
[1759792921705,1e-08,4693.4,4693.3,24.25043695]
[1759792922129,1e-08,4693.4,4693.3,19.48968395]
[1759792922329,1e-08,4693.4,4693.3,16.77533495]
[1759792923132,1e-08,4693.4,4693.3,12.97444295]
[1759792923833,1e-08,4693.4,4693.3,13.40874295]
[1759792924139,1e-08,4693.4,4693.3,17.95074095]
[1759792925160,1e-08,4693.4,4693.3,33.8351842]
[1759792925376,1e-08,4693.4,4693.3,27.7934322]
[1759792926218,1e-08,4693.4,4693.3,29.7055592]
[1759792927241,1e-08,4693.4,4693.3,37.4512122]
[1759792930163,1e-08,4693.9,4693.4,2.61631726]
[1759792930336,1e-08,4693.9,4693.8,6.05211026]
[1759792930658,1e-08,4693.9,4693.8,8.77296078]
[1759792930831,1e-08,4693.9,4693.8,38.99381026]
[1759792931037,1e-08,4693.9,4693.8,39.07900736]
[1759792931232,1e-08,4693.9,4693.8,37.55736708]
[1759792931637,1e-08,4693.9,4693.8,37.98713486]
[1759792934241,1e-08,4693.9,4693.8,37.7708176]
[1759792936468,1e-08,4693.9,4693.8,39.28884337]
[1759792936856,1e-08,4693.9,4693.8,39.07539285]
[1759792939256,1e-08,4693.9,4693.8,37.55736708]
[1759792939642,1e-08,4693.9,4693.8,34.72206708]
[1759792939847,0.46330001,4693.9,4693.8,32.05261608]
[1759792940046,0.46330001,4693.9,4693.8,21.01314498]
[1759792940777,0.46330001,4693.9,4693.8,27.17332598]
[1759792941071,0.46330001,4693.9,4693.8,14.68766098]
[1759792941271,0.46330001,4693.9,4693.8,4.96077498]
[1759792941473,0.46330001,4693.9,4693.8,4.63686998]
[1759792941656,0.46330001,4693.9,4693.8,7.03686998]
[1759792943886,0.46330001,4693.9,4693.8,9.27409398]
[1759792944284,0.46330001,4693.9,4693.8,2.5064]
[1759792944676,0.46330001,4693.9,4693.8,4.63686998]
[1759792944872,0.46330001,4693.9,4693.8,2.5064]
[1759792945402,0.46330001,4693.9,4693.8,4.63686998]
[1759792945571,0.46330001,4693.9,4693.8,6.72507698]
[1759792947074,1e-08,4693.9,4693.8,26.47572898]
[1759792947283,1e-08,4693.9,4693.8,37.5792205]
[1759792949074,1e-08,4693.9,4693.8,37.36576998]
[1759792949473,1e-08,4693.9,4693.8,38.42913776]
[1759792949676,0.012,4694.9,4694.2,3.0336]
[1759792949677,1e-08,4694.9,4694.2,3.0336]
[1759792949974,1e-08,4694.9,4694.8,2.13001618]
[1759792950177,1e-08,4694.9,4694.8,36.93001618]
[1759792950379,1e-08,4694.9,4694.8,37.36431618]
[1759792953011,1e-08,4694.9,4694.8,36.93001618]
[1759792954117,1e-08,4694.9,4694.8,6.93001618]
[1759792954501,1e-08,4694.9,4694.8,36.93001618]
[1759792955212,1e-08,4694.9,4694.8,37.40071618]
[1759792957121,1e-08,4694.9,4694.8,37.50711618]
[1759792957918,1e-08,4694.9,4694.8,37.03641618]
[1759792959699,1e-08,4694.9,4694.8,37.48281618]
[1759792960438,1e-08,4694.9,4694.8,37.03641618]
[1759792961418,1e-08,4694.9,4694.8,7.03641618]
[1759792961800,1e-08,4694.9,4694.8,37.03641618]
[1759792963094,0.43630001,4694.9,4694.8,2.4]
[1759792964598,0.43630001,4694.9,4694.8,0.001]
[1759792964790,2.56627082,4694.9,4694.8,0.001]
[1759792969841,3.19987082,4694.9,4694.8,0.001]
[1759792970012,3.73284817,4694.9,4694.8,0.001]
[1759792973262,3.83924817,4694.9,4694.8,0.001]
[1759792973433,6.23924817,4694.9,4694.8,0.001]
[1759792973639,6.43765748,4694.9,4694.8,0.001]
[1759792973824,6.52290815,4694.9,4694.8,0.001]
[1759792975078,6.32449884,4694.9,4694.8,0.001]
[1759792975238,8.64024817,4694.9,4694.8,0.001]
[1759792976470,3.20564817,4694.9,4694.8,0.001]
[1759792976675,0.96927736,4694.9,4694.8,0.001]
[1759792976959,3.19987082,4694.9,4694.8,0.001]
[1759792981807,0.63360001,4694.9,4694.8,0.001]
[1759792982008,1e-08,4694.9,4694.8,0.001]
[1759792982160,0.43630001,4694.9,4694.8,0.001]
[1759792982489,2.56627082,4694.9,4694.8,0.001]
[1759792982660,3.66948668,4694.9,4694.8,0.001]
[1759792984897,6.06948668,4694.9,4694.8,0.001]
[1759792987082,6.17588668,4694.9,4694.8,0.001]
[1759792987398,6.26114026,4694.9,4694.8,0.001]
[1759792987579,6.45946443,4694.9,4694.8,0.001]
[1759792988316,6.45946443,4694.9,4693.8,1e-08]
[1759792988317,2.4,4694.8,4693.8,1e-08]
[1759792988515,11.38902022,4693.9,4693.1,1e-08]
[1759792988812,16.55336257,4693.2,4693.1,1e-08]
[1759792988975,21.23616108,4693.2,4693.1,1e-08]
[1759792989163,21.66916108,4693.2,4693.1,1e-08]
[1759792989560,2.7646602,4692.5,4692.4,1e-08]
[1759792989766,7.5676602,4692.5,4692.4,1e-08]
[1759792989993,7.5676602,4692.5,4691.9,0.001]
[1759792989994,2.76488729,4692.0,4691.9,0.001]
[1759792990192,7.56788729,4692.0,4691.9,0.001]
[1759792990394,8.00088729,4692.0,4691.9,0.001]
[1759792991471,8.00088729,4692.0,4690.9,0.001]
[1759792991472,2.76534163,4691.0,4690.9,0.001]
[1759792991676,8.05804288,4691.0,4690.9,0.001]
[1759792991879,8.49104288,4691.0,4690.9,0.001]
[1759792992501,8.49104288,4691.0,4689.8,0.001]
[1759792992502,0.6336,4690.9,4689.8,0.001]
[1759792992710,2.13201432,4690.4,4689.8,0.001]
[1759792992909,6.6609552,4690.4,4689.8,0.001]
[1759792993211,4.53201432,4690.4,4689.8,0.001]
[1759792994105,2.4,4690.4,4689.8,0.001]
[1759792994292,0.6336,4690.6,4689.8,0.001]
[1759792994493,5.59861432,4690.4,4689.8,0.001]
[1759792995513,5.16561432,4690.4,4689.8,0.001]
[1759792995672,3.52267575,4690.4,4689.8,0.001]
[1759792995991,2.88907575,4690.4,4689.8,0.001]
[1759792996192,0.75706143,4690.4,4689.8,0.001]
[1759792996394,2.405,4690.5,4689.8,0.001]
[1759792996395,2.13193546,4690.6,4690.0,0.4649]
[1759792996594,2.13199356,4690.5,4690.0,0.4649]
[1759792996805,3.0336,4690.7,4690.0,0.4649]
[1759792996806,2.13193162,4690.6,4690.0,0.4649]
[1759792997190,0.6336,4690.5,4689.8,0.001]
[1759792997388,2.13201432,4690.4,4689.8,0.001]
[1759792997719,3.14556809,4690.4,4689.8,0.001]
[1759792998380,3.25196809,4690.4,4689.8,0.001]
[1759792999226,3.68496809,4690.4,4689.8,0.001]
[1759792999435,6.71856809,4690.4,4689.8,0.001]
[1759793000139,6.28556809,4690.4,4689.8,0.001]
[1759793000638,6.71856809,4690.4,4689.8,0.001]
[1759793000793,6.28556809,4690.4,4689.8,0.001]
[1759793001222,6.71856809,4690.4,4689.8,0.001]
[1759793002926,6.28556809,4690.4,4689.8,0.001]
[1759793003128,6.17916809,4690.4,4689.9,0.4649]
[1759793003295,3.88556809,4690.4,4689.9,0.4649]
[1759793004431,1.11995377,4690.4,4689.8,0.001]
[1759793004633,2.56428188,4692.1,4690.3,0.4659]
[1759793004836,2.56428188,4692.1,4690.3,0.5723]
[1759793004837,0.1064,4691.0,4690.3,0.5723]
[1759793006008,2.23815011,4691.0,4690.3,0.5723]
[1759793006197,0.1064,4691.0,4690.3,2.70435367]
[1759793006396,2.23814316,4691.0,4690.4,0.4649]
[1759793006597,0.5433753,4691.0,4690.5,2.13195844]
[1759793006800,0.6336,4692.0,4690.3,0.1074]
[1759793006801,0.1064,4691.4,4690.6,0.4649]
[1759793007017,0.1064,4691.4,4690.7,0.1064]
[1759793007241,2.13161528,4691.3,4690.7,0.1064]
[1759793007441,2.13166254,4691.2,4690.7,0.1064]
[1759793007643,2.23796481,4691.4,4690.7,0.5713]
[1759793007849,2.13168545,4691.2,4690.7,0.5713]
[1759793008451,2.13168545,4691.2,4690.7,0.1064]
[1759793008649,2.46179206,4691.4,4690.8,0.4649]
[1759793008829,0.33019648,4691.4,4690.8,0.4649]
[1759793009030,0.1064,4691.4,4690.8,0.4649]
[1759793009337,2.1316862,4691.2,4690.8,0.4649]
[1759793009650,2.13161557,4691.3,4690.8,0.4649]
[1759793009964,2.13161557,4691.3,4690.9,0.4649]
[1759793010679,2.13165535,4691.2,4690.7,0.1064]
[1759793010856,2.13165535,4691.2,4690.8,0.4649]
[1759793011362,0.1064,4691.4,4690.8,0.4649]
[1759793011520,2.13168994,4691.2,4690.8,0.4649]
[1759793012465,2.13168994,4691.2,4690.7,0.1064]
[1759793012628,2.13168994,4691.2,4690.8,0.4649]
[1759793012962,2.13168994,4691.2,4690.7,0.1064]
[1759793013169,2.13168994,4691.2,4690.7,0.5346]
[1759793013664,2.23799703,4691.4,4690.7,0.5346]
[1759793013864,2.13160712,4691.3,4690.8,0.4282]
[1759793015067,0.3734997,4691.4,4690.7,0.1064]
[1759793015258,0.3734997,4691.4,4690.3,0.001]
[1759793015259,0.6336,4690.8,4690.3,0.001]
[1759793015460,2.23841432,4690.4,4690.3,0.001]
[1759793015956,2.43690394,4690.4,4690.3,0.001]
[1759793016166,2.90220394,4690.4,4690.3,0.001]
[1759793016558,2.43690394,4690.4,4690.3,0.001]
[1759793016757,3.00368122,4690.4,4690.3,0.001]
[1759793017558,2.8051916,4690.4,4690.3,0.001]
[1759793017972,0.67317728,4690.4,4690.3,0.001]
[1759793018263,0.1064,4690.6,4690.3,0.001]
[1759793019060,0.1064,4690.6,4690.4,0.4282]
[1759793019993,2.23834057,4690.6,4690.4,0.4282]
[1759793020289,2.23834057,4690.6,4690.3,0.001]
[1759793020694,0.1064,4690.6,4690.3,0.001]
[1759793021056,0.1064,4690.6,4690.3,0.4292]
[1759793022596,0.1064,4690.6,4690.3,0.001]
[1759793022899,0.002,4691.3,4690.3,0.001]
[1759793022900,0.1064,4691.2,4690.5,0.1064]
[1759793023396,2.13178361,4691.0,4690.5,0.1064]
[1759793023608,0.1064,4691.2,4690.5,0.1064]
[1759793023815,0.72369078,4691.1,4690.5,0.1064]
[1759793023968,1.18899078,4691.1,4690.3,0.001]
[1759793024298,2.13192402,4690.6,4690.3,0.001]
[1759793025308,2.1319996,4690.5,4690.3,0.001]
[1759793027520,0.002,4691.3,4690.4,2.13197863]
[1759793027670,0.1064,4691.1,4690.4,0.4282]
[1759793027876,2.13175377,4691.0,4690.5,0.1064]
[1759793028119,2.56893157,4691.0,4690.5,0.1064]
[1759793028412,0.4371778,4691.0,4690.5,0.1064]
[1759793028628,0.1064,4691.1,4690.6,0.4282]
[1759793028784,0.002,4691.3,4690.7,2.8322]
[1759793028993,0.002,4691.3,4690.9,0.1064]
[1759793029296,2.13180066,4690.9,4690.3,0.001]
[1759793029515,2.13192342,4690.6,4690.5,0.1064]
[1759793029711,2.13192342,4690.6,4690.3,0.001]
[1759793029712,3.0235198,4690.8,4690.3,0.001]
[1759793029880,2.13201106,4690.5,4690.3,0.001]
[1759793030286,0.4653,4690.6,4690.3,0.001]
[1759793030514,0.31299435,4690.6,4690.3,0.4292]
[1759793031314,0.1064,4690.7,4690.3,0.4292]
[1759793031614,2.13194217,4690.6,4690.3,0.001]
[1759793031800,2.13188378,4690.7,4690.3,0.001]
[1759793032516,0.1064,4690.9,4690.3,0.001]
[1759793032815,0.1064,4690.9,4690.4,0.5346]
[1759793033017,0.1064,4690.9,4690.5,0.4282]
[1759793033516,0.1064,4690.9,4690.5,0.001]
[1759793033887,0.1064,4690.9,4690.5,0.4292]